[Event "*** SCC Grand Prix: Titled Tuesday Blitz"]
[Site "Chess.com"]
[Date "2020.07.07"]
[Round "10"]
[White "Zurability"]
[Black "chenxiaoyuer"]
[Result "1-0"]
[WhiteElo "2599"]
[BlackElo "2435"]
[TimeControl "180+1"]
[EndTime "11:59:17 PDT"]
[Termination "Zurability won by checkmate"]

1. c4 {[%clk 0:03:00.9]} 1... Nf6 {[%clk 0:02:59.5]} 2. d4 {[%clk 0:03:01.3]}
2... g6 {[%clk 0:02:59.4]} 3. Nc3 {[%clk 0:03:01.1]} 3... Bg7 {[%clk 0:02:59.1]}
4. e4 {[%clk 0:03:01.5]} 4... d6 {[%clk 0:02:59.3]} 5. Nf3 {[%clk 0:03:02.1]}
5... O-O {[%clk 0:02:59.9]} 6. Be2 {[%clk 0:03:02.4]} 6... e5 {[%clk 0:03:00.4]}
7. d5 {[%clk 0:02:59.9]} 7... a5 {[%clk 0:02:59.8]} 8. Bg5 {[%clk 0:02:55.1]}
8... h6 {[%clk 0:02:59.7]} 9. Be3 {[%clk 0:02:54.9]} 9... Ng4 {[%clk 0:02:49.3]}
10. Bd2 {[%clk 0:02:54.6]} 10... f5 {[%clk 0:02:48.9]} 11. exf5 {[%clk
0:02:47.3]} 11... gxf5 {[%clk 0:02:48.1]} 12. h3 {[%clk 0:02:47.8]} 12... Nf6
{[%clk 0:02:46.6]} 13. Qc1 {[%clk 0:02:47.8]} 13... Kh7 {[%clk 0:02:41.4]} 14.
g4 {[%clk 0:02:47.1]} 14... Na6 {[%clk 0:02:33.6]} 15. g5 {[%clk 0:02:34.7]}
15... Nh5 {[%clk 0:02:07.7]} 16. gxh6 {[%clk 0:02:05.8]} 16... Bf6 {[%clk
0:01:55.4]} 17. Rg1 {[%clk 0:01:52.8]} 17... Rg8 {[%clk 0:01:37]} 18. Ng5+
{[%clk 0:01:14.7]} 18... Bxg5 {[%clk 0:01:34.7]} 19. Rxg5 {[%clk 0:01:15.6]}
19... Nf6 {[%clk 0:01:14.4]} 20. Rxg8 {[%clk 0:01:07.3]} 20... Qxg8 {[%clk
0:01:15.3]} 21. Bg5 {[%clk 0:01:07.1]} 21... Ne4 {[%clk 0:01:05.6]} 22. Nxe4
{[%clk 0:01:05.5]} 22... fxe4 {[%clk 0:01:06.5]} 23. Qe3 {[%clk 0:01:03.5]}
23... Bf5 {[%clk 0:00:48]} 24. O-O-O {[%clk 0:01:02.9]} 24... Nb4 {[%clk
0:00:43.3]} 25. Rg1 {[%clk 0:00:56.5]} 25... Qf7 {[%clk 0:00:40.7]} 26. Bh4
{[%clk 0:00:52.4]} 26... Rg8 {[%clk 0:00:39]} 27. Rg5 {[%clk 0:00:36.1]} 27...
Rxg5 {[%clk 0:00:29.7]} 28. Qxg5 {[%clk 0:00:36]} 28... Nxa2+ {[%clk 0:00:28.2]}
29. Kd2 {[%clk 0:00:33.7]} 29... Bg6 {[%clk 0:00:27.3]} 30. Bg4 {[%clk 0:00:24]}
30... Nb4 {[%clk 0:00:16.3]} 31. Be6 {[%clk 0:00:23.7]} 31... Qf4+ {[%clk
0:00:15.2]} 32. Qxf4 {[%clk 0:00:23.7]} 32... exf4 {[%clk 0:00:15.7]} 33. Bg5
{[%clk 0:00:21.9]} 33... e3+ {[%clk 0:00:14.8]} 34. fxe3 {[%clk 0:00:20.6]}
34... f3 {[%clk 0:00:14.6]} 35. Bh4 {[%clk 0:00:15.7]} 35... Nd3 {[%clk
0:00:12.1]} 36. Bg4 {[%clk 0:00:14.2]} 36... f2 {[%clk 0:00:10.8]} 37. Be2
{[%clk 0:00:13.4]} 37... Nxb2 {[%clk 0:00:10.7]} 38. Bxf2 {[%clk 0:00:13.1]}
38... a4 {[%clk 0:00:10.2]} 39. Kc3 {[%clk 0:00:12]} 39... a3 {[%clk 0:00:10.4]}
40. Kb3 {[%clk 0:00:12.4]} 40... Bd3 {[%clk 0:00:05.9]} 41. Bg4 {[%clk
0:00:07.4]} 41... Bxc4+ {[%clk 0:00:05.2]} 42. Kxa3 {[%clk 0:00:07.3]} 42... Nd3
{[%clk 0:00:05.3]} 43. Bh4 {[%clk 0:00:07.6]} 43... Kxh6 {[%clk 0:00:04.5]} 44.
Bd8 {[%clk 0:00:07.6]} 44... Bxd5 {[%clk 0:00:04.3]} 45. Bxc7 {[%clk 0:00:07.7]}
45... Be4 {[%clk 0:00:02.8]} 46. Bxd6 {[%clk 0:00:07.5]} 46... Nf2 {[%clk
0:00:03.5]} 47. Bf4+ {[%clk 0:00:06.9]} 47... Kg6 {[%clk 0:00:03.2]} 48. Bc8
{[%clk 0:00:06.5]} 48... Bg2 {[%clk 0:00:03.3]} 49. h4 {[%clk 0:00:06.4]} 49...
Kh5 {[%clk 0:00:03.6]} 50. Bg5 {[%clk 0:00:06]} 50... Ne4 {[%clk 0:00:03.7]} 51.
Be7 {[%clk 0:00:05.7]} 51... Bh3 {[%clk 0:00:02.6]} 52. Bxh3 {[%clk 0:00:05.1]}
52... Nf2 {[%clk 0:00:02.7]} 53. Be6 {[%clk 0:00:04.6]} 53... Ne4 {[%clk
0:00:02.8]} 54. Bf7+ {[%clk 0:00:04.9]} 54... Kg4 {[%clk 0:00:02.3]} 55. Bd5
{[%clk 0:00:05.1]} 55... Nd2 {[%clk 0:00:02.5]} 56. Kb4 {[%clk 0:00:04.1]} 56...
Kh5 {[%clk 0:00:02.4]} 57. Bf7+ {[%clk 0:00:04.2]} 57... Kg4 {[%clk 0:00:02.6]}
58. h5 {[%clk 0:00:04.6]} 58... Nf1 {[%clk 0:00:02.5]} 59. h6 {[%clk 0:00:05.2]}
59... Nxe3 {[%clk 0:00:03.4]} 60. h7 {[%clk 0:00:05.7]} 60... Nf5 {[%clk
0:00:04.1]} 61. h8=Q {[%clk 0:00:05.8]} 61... Nxe7 {[%clk 0:00:05]} 62. Qd4+
{[%clk 0:00:05]} 62... Kg5 {[%clk 0:00:04.7]} 63. Qe5+ {[%clk 0:00:05.4]} 63...
Nf5 {[%clk 0:00:05.4]} 64. Be6 {[%clk 0:00:05.6]} 64... Kg4 {[%clk 0:00:05.7]}
65. Qxf5+ {[%clk 0:00:06.2]} 65... Kg3 {[%clk 0:00:06.6]} 66. Qg4+ {[%clk
0:00:06.6]} 66... Kh2 {[%clk 0:00:06.1]} 67. Qh3+ {[%clk 0:00:05.7]} 67... Kg1
{[%clk 0:00:05.5]} 68. Qg3+ {[%clk 0:00:06.2]} 68... Kf1 {[%clk 0:00:04.4]} 69.
Bc4# {[%clk 0:00:06.3]} 1-0

[Event "*** SCC Grand Prix: Titled Tuesday Blitz"]
[Site "Chess.com"]
[Date "2020.07.07"]
[Round "10"]
[White "chito89"]
[Black "cassoulet"]
[Result "0-1"]
[WhiteElo "2799"]
[BlackElo "2670"]
[TimeControl "180+1"]
[EndTime "11:59:19 PDT"]
[Termination "cassoulet won on time"]

1. e4 {[%clk 0:02:59.9]} 1... c5 {[%clk 0:02:59.1]} 2. Nf3 {[%clk 0:02:49.3]}
2... Nc6 {[%clk 0:02:59.4]} 3. g3 {[%clk 0:02:43.8]} 3... g6 {[%clk 0:02:59.2]}
4. Bg2 {[%clk 0:02:38]} 4... Bg7 {[%clk 0:02:59.7]} 5. O-O {[%clk 0:02:33.7]}
5... d6 {[%clk 0:03:00]} 6. c3 {[%clk 0:02:34]} 6... Nf6 {[%clk 0:02:58.7]} 7.
Re1 {[%clk 0:02:15.5]} 7... O-O {[%clk 0:02:58]} 8. d4 {[%clk 0:02:12.1]} 8...
a6 {[%clk 0:02:55.8]} 9. h3 {[%clk 0:02:06.9]} 9... b5 {[%clk 0:02:51.8]} 10. e5
{[%clk 0:02:03.4]} 10... Ne8 {[%clk 0:02:51.5]} 11. dxc5 {[%clk 0:01:59.7]}
11... dxc5 {[%clk 0:02:50.5]} 12. Qxd8 {[%clk 0:01:56.4]} 12... Nxd8 {[%clk
0:02:51.4]} 13. Bg5 {[%clk 0:01:50.8]} 13... Ra7 {[%clk 0:02:50.5]} 14. Nbd2
{[%clk 0:01:47.2]} 14... Ne6 {[%clk 0:02:49.7]} 15. Be3 {[%clk 0:01:47.1]} 15...
Rd7 {[%clk 0:02:44]} 16. a4 {[%clk 0:01:41.7]} 16... Bb7 {[%clk 0:02:43.2]} 17.
axb5 {[%clk 0:01:39.3]} 17... axb5 {[%clk 0:02:44.1]} 18. Ra7 {[%clk 0:01:36.4]}
18... Bc6 {[%clk 0:02:36.8]} 19. Rxd7 {[%clk 0:01:34.3]} 19... Bxd7 {[%clk
0:02:37.7]} 20. Nb3 {[%clk 0:01:34.7]} 20... c4 {[%clk 0:02:36.3]} 21. Nc5
{[%clk 0:01:34.9]} 21... Nxc5 {[%clk 0:02:27.2]} 22. Bxc5 {[%clk 0:01:35.8]}
22... Nc7 {[%clk 0:02:27.9]} 23. Bxe7 {[%clk 0:01:34.7]} 23... Re8 {[%clk
0:02:27.8]} 24. Bd6 {[%clk 0:01:34.8]} 24... Ne6 {[%clk 0:02:23.1]} 25. Ra1
{[%clk 0:01:31.6]} 25... Bf8 {[%clk 0:02:20.8]} 26. Ra7 {[%clk 0:01:28.1]} 26...
Bc6 {[%clk 0:02:19.5]} 27. Bxf8 {[%clk 0:00:44.8]} 27... Kxf8 {[%clk 0:02:20.4]}
28. Nd4 {[%clk 0:00:45.1]} 28... Bxg2 {[%clk 0:02:11]} 29. Kxg2 {[%clk
0:00:44.6]} 29... Nc5 {[%clk 0:02:10]} 30. Ra5 {[%clk 0:00:40.6]} 30... Rxe5
{[%clk 0:02:03.5]} 31. Rxb5 {[%clk 0:00:39.7]} 31... Nd3 {[%clk 0:01:53.8]} 32.
Rxe5 {[%clk 0:00:32]} 32... Nxe5 {[%clk 0:01:54.7]} 33. Nb5 {[%clk 0:00:26.9]}
33... Nd3 {[%clk 0:01:52.8]} 34. Kf3 {[%clk 0:00:27.8]} 34... Nxb2 {[%clk
0:01:52.1]} 35. Ke3 {[%clk 0:00:23.8]} 35... Ke7 {[%clk 0:01:52.1]} 36. Kd4
{[%clk 0:00:21.9]} 36... Ke6 {[%clk 0:01:46.7]} 37. Na3 {[%clk 0:00:19.9]} 37...
Nd1 {[%clk 0:01:46.3]} 38. f4 {[%clk 0:00:19.3]} 38... Nf2 {[%clk 0:01:46.5]}
39. h4 {[%clk 0:00:17.2]} 39... Nh1 {[%clk 0:01:46.5]} 40. g4 {[%clk 0:00:13.7]}
40... Nf2 {[%clk 0:01:46.7]} 41. g5 {[%clk 0:00:12.1]} 41... Kf5 {[%clk
0:01:47.1]} 42. Nxc4 {[%clk 0:00:11.2]} 42... Kxf4 {[%clk 0:01:47.4]} 43. Ne5
{[%clk 0:00:09.4]} 43... Ne4 {[%clk 0:01:38.6]} 44. Nxf7 {[%clk 0:00:08.2]}
44... Nd2 {[%clk 0:01:32]} 45. c4 {[%clk 0:00:08.5]} 45... Kf5 {[%clk
0:01:29.8]} 46. Kd5 {[%clk 0:00:07.9]} 46... Nb1 {[%clk 0:00:35.3]} 47. c5
{[%clk 0:00:07.2]} 47... Nc3+ {[%clk 0:00:35.4]} 48. Kd6 {[%clk 0:00:06.9]}
48... Kg4 {[%clk 0:00:26.9]} 49. c6 {[%clk 0:00:06.7]} 49... Kxh4 {[%clk
0:00:27.3]} 50. Kc5 {[%clk 0:00:04.5]} 50... Na4+ {[%clk 0:00:25.4]} 51. Kb5
{[%clk 0:00:04.6]} 51... Nc3+ {[%clk 0:00:25.6]} 52. Kc4 {[%clk 0:00:04.9]}
52... Na4 {[%clk 0:00:26]} 53. c7 {[%clk 0:00:05.8]} 53... Nb6+ {[%clk
0:00:25.7]} 54. Kc5 {[%clk 0:00:04.2]} 54... Nc8 {[%clk 0:00:26.6]} 55. Nd6
{[%clk 0:00:04.3]} 55... Ne7 {[%clk 0:00:25.6]} 56. Kd4 {[%clk 0:00:03.5]} 56...
Kxg5 {[%clk 0:00:25.3]} 57. Ke5 {[%clk 0:00:04.4]} 57... Nc6+ {[%clk 0:00:22.8]}
58. Ke6 {[%clk 0:00:05]} 58... Na7 {[%clk 0:00:23.7]} 59. Nb5 {[%clk 0:00:05.5]}
59... Nc8 {[%clk 0:00:22.8]} 60. Kd7 {[%clk 0:00:06]} 60... Nb6+ {[%clk
0:00:22.6]} 61. Kc6 {[%clk 0:00:06.5]} 61... Nc8 {[%clk 0:00:22.4]} 62. Nd6
{[%clk 0:00:07.1]} 62... Ne7+ {[%clk 0:00:21]} 63. Kd7 {[%clk 0:00:07.5]} 63...
Nd5 {[%clk 0:00:21.5]} 64. Ne4+ {[%clk 0:00:06.5]} 64... Kf4 {[%clk 0:00:21]}
65. Kc6 {[%clk 0:00:05.8]} 65... Nxc7 {[%clk 0:00:20.8]} 66. Nf6 {[%clk
0:00:04.8]} 66... h5 {[%clk 0:00:18]} 0-1

[Event "*** SCC Grand Prix: Titled Tuesday Blitz"]
[Site "Chess.com"]
[Date "2020.07.07"]
[Round "10"]
[White "ajdemipopushi"]
[Black "KNCP_719"]
[Result "1-0"]
[WhiteElo "2378"]
[BlackElo "2465"]
[TimeControl "180+1"]
[EndTime "11:59:20 PDT"]
[Termination "ajdemipopushi won on time"]

1. Nf3 {[%clk 0:03:00.9]} 1... d5 {[%clk 0:02:54.7]} 2. g3 {[%clk 0:03:00.6]}
2... Nf6 {[%clk 0:02:54.3]} 3. c4 {[%clk 0:03:00.8]} 3... c6 {[%clk 0:02:53.9]}
4. Bg2 {[%clk 0:03:01.2]} 4... Bg4 {[%clk 0:02:53.7]} 5. Ne5 {[%clk 0:03:01]}
5... Bf5 {[%clk 0:02:54.1]} 6. cxd5 {[%clk 0:02:58.5]} 6... cxd5 {[%clk
0:02:54.1]} 7. Qa4+ {[%clk 0:02:58.1]} 7... Nbd7 {[%clk 0:02:52.3]} 8. Nc3
{[%clk 0:02:57.8]} 8... e6 {[%clk 0:02:50.7]} 9. g4 {[%clk 0:02:57.1]} 9... Bg6
{[%clk 0:02:49.9]} 10. h4 {[%clk 0:02:57.2]} 10... h6 {[%clk 0:01:53.5]} 11.
Nxg6 {[%clk 0:02:55]} 11... fxg6 {[%clk 0:01:54.4]} 12. g5 {[%clk 0:02:53.6]}
12... hxg5 {[%clk 0:01:49.5]} 13. hxg5 {[%clk 0:02:53.8]} 13... Rxh1+ {[%clk
0:01:50.4]} 14. Bxh1 {[%clk 0:02:54]} 14... Nh5 {[%clk 0:01:50.7]} 15. d4 {[%clk
0:02:53.3]} 15... Qb6 {[%clk 0:01:41.5]} 16. e3 {[%clk 0:01:48.8]} 16... Be7
{[%clk 0:01:31.6]} 17. f4 {[%clk 0:01:40.5]} 17... Ng3 {[%clk 0:01:31.2]} 18.
Bf3 {[%clk 0:01:31.3]} 18... Nf5 {[%clk 0:01:31.5]} 19. Bd2 {[%clk 0:01:21.7]}
19... Qc6 {[%clk 0:01:18.3]} 20. Ke2 {[%clk 0:01:10.4]} 20... Nb6 {[%clk
0:01:15.8]} 21. Qxc6+ {[%clk 0:01:07.9]} 21... bxc6 {[%clk 0:01:16.7]} 22. Rc1
{[%clk 0:01:04.8]} 22... Kd7 {[%clk 0:00:32.9]} 23. b3 {[%clk 0:01:00.3]} 23...
Rh8 {[%clk 0:00:32]} 24. Kd3 {[%clk 0:00:47]} 24... Rh3 {[%clk 0:00:23.1]} 25.
Bg4 {[%clk 0:00:38.4]} 25... Rh2 {[%clk 0:00:21.9]} 26. a4 {[%clk 0:00:27.6]}
26... Bb4 {[%clk 0:00:17]} 27. Nb1 {[%clk 0:00:21]} 27... Bxd2 {[%clk 0:00:13]}
28. Nxd2 {[%clk 0:00:21.2]} 28... a5 {[%clk 0:00:08.1]} 29. Nf3 {[%clk
0:00:17.9]} 29... Rf2 {[%clk 0:00:06.5]} 30. Ne5+ {[%clk 0:00:16.6]} 30... Kd8
{[%clk 0:00:04.3]} 31. Bxf5 {[%clk 0:00:16.3]} 31... gxf5 {[%clk 0:00:03.8]} 32.
Rxc6 {[%clk 0:00:16.2]} 32... Nc8 {[%clk 0:00:01.4]} 33. Rxe6 {[%clk 0:00:14.6]}
33... Ne7 {[%clk 0:00:01.4]} 34. Nc6+ {[%clk 0:00:12.7]} 34... Nxc6 {[%clk
0:00:01.1]} 35. Rxc6 {[%clk 0:00:12.8]} 35... Rb2 {[%clk 0:00:01.6]} 36. Rb6
{[%clk 0:00:11.3]} 36... Kc7 {[%clk 0:00:01.8]} 37. Rb5 {[%clk 0:00:11.2]} 37...
Kc6 {[%clk 0:00:02.4]} 38. Kc3 {[%clk 0:00:10.4]} 38... Re2 {[%clk 0:00:02.4]}
39. Kd3 {[%clk 0:00:10.8]} 39... Rb2 {[%clk 0:00:03]} 40. Rb8 {[%clk 0:00:10.7]}
40... Kc7 {[%clk 0:00:02.9]} 41. Rg8 {[%clk 0:00:10.3]} 41... Rxb3+ {[%clk
0:00:02.6]} 42. Ke2 {[%clk 0:00:10.7]} 42... Ra3 {[%clk 0:00:01.7]} 43. Rxg7+
{[%clk 0:00:10.8]} 43... Kd6 {[%clk 0:00:01.7]} 44. Rf7 {[%clk 0:00:09.7]} 44...
Ke6 {[%clk 0:00:01.8]} 45. Rf6+ {[%clk 0:00:09.8]} 45... Ke7 {[%clk 0:00:02.3]}
46. Rxf5 {[%clk 0:00:10.3]} 46... Rxa4 {[%clk 0:00:03.2]} 47. Rxd5 {[%clk
0:00:10.6]} 47... Ra1 {[%clk 0:00:03]} 48. Kf3 {[%clk 0:00:10.3]} 48... a4
{[%clk 0:00:03.4]} 49. Ke4 {[%clk 0:00:10.8]} 49... a3 {[%clk 0:00:03.8]} 50.
Ra5 {[%clk 0:00:11.4]} 50... a2 {[%clk 0:00:04.1]} 51. Kf5 {[%clk 0:00:11.5]}
51... Kd6 {[%clk 0:00:04.2]} 52. e4 {[%clk 0:00:11.5]} 52... Kc6 {[%clk
0:00:04.5]} 53. d5+ {[%clk 0:00:11.1]} 53... Kb6 {[%clk 0:00:04.8]} 54. Ra3
{[%clk 0:00:11.2]} 54... Kb5 {[%clk 0:00:04.9]} 55. g6 {[%clk 0:00:11.5]} 55...
Kb4 {[%clk 0:00:05.4]} 56. Ra8 {[%clk 0:00:11.5]} 56... Kb3 {[%clk 0:00:04.5]}
57. g7 {[%clk 0:00:11.8]} 57... Rg1 {[%clk 0:00:03.5]} 58. Kf6 {[%clk
0:00:11.7]} 1-0

[Event "*** SCC Grand Prix: Titled Tuesday Blitz"]
[Site "Chess.com"]
[Date "2020.07.07"]
[Round "10"]
[White "Grandelicious"]
[Black "Flawless_Fighter"]
[Result "1-0"]
[WhiteElo "2775"]
[BlackElo "2573"]
[TimeControl "180+1"]
[EndTime "11:59:28 PDT"]
[Termination "Grandelicious won by resignation"]

1. e4 {[%clk 0:03:00.9]} 1... c6 {[%clk 0:02:59.7]} 2. Nc3 {[%clk 0:02:58.9]}
2... d5 {[%clk 0:03:00.6]} 3. Nf3 {[%clk 0:02:59.4]} 3... Bg4 {[%clk 0:03:00.5]}
4. h3 {[%clk 0:02:59.3]} 4... Bxf3 {[%clk 0:03:01.1]} 5. Qxf3 {[%clk 0:03:00.2]}
5... e6 {[%clk 0:03:01.8]} 6. Be2 {[%clk 0:03:00.8]} 6... Nf6 {[%clk 0:03:02]}
7. O-O {[%clk 0:02:58.7]} 7... Be7 {[%clk 0:03:02.4]} 8. Rd1 {[%clk 0:02:47.4]}
8... d4 {[%clk 0:03:02]} 9. Nb1 {[%clk 0:02:47.2]} 9... O-O {[%clk 0:03:00.8]}
10. d3 {[%clk 0:02:47]} 10... c5 {[%clk 0:03:01.4]} 11. h4 {[%clk 0:02:43.1]}
11... Nc6 {[%clk 0:03:01.5]} 12. Qh3 {[%clk 0:02:42.8]} 12... e5 {[%clk
0:03:00]} 13. c3 {[%clk 0:02:32.5]} 13... Rc8 {[%clk 0:02:59.1]} 14. Na3 {[%clk
0:02:28]} 14... Qd7 {[%clk 0:02:58.5]} 15. Qxd7 {[%clk 0:02:24.5]} 15... Nxd7
{[%clk 0:02:59.4]} 16. g3 {[%clk 0:02:19.9]} 16... Rfd8 {[%clk 0:02:58.7]} 17.
Kg2 {[%clk 0:02:14.4]} 17... a6 {[%clk 0:02:58.7]} 18. Nc2 {[%clk 0:02:08.1]}
18... b5 {[%clk 0:02:58.3]} 19. Bd2 {[%clk 0:02:03.8]} 19... Nb6 {[%clk
0:02:54]} 20. Rab1 {[%clk 0:01:47.5]} 20... Na4 {[%clk 0:02:53.9]} 21. h5 {[%clk
0:01:37.8]} 21... h6 {[%clk 0:02:52.7]} 22. f4 {[%clk 0:01:35.7]} 22... Bf6
{[%clk 0:02:42.4]} 23. cxd4 {[%clk 0:01:23.9]} 23... Nxd4 {[%clk 0:02:24.3]} 24.
Nxd4 {[%clk 0:01:23.8]} 24... cxd4 {[%clk 0:02:24.8]} 25. Rdc1 {[%clk
0:01:17.1]} 25... Be7 {[%clk 0:02:10.6]} 26. Rxc8 {[%clk 0:01:07.7]} 26... Rxc8
{[%clk 0:02:10.4]} 27. Rc1 {[%clk 0:01:08.6]} 27... Rxc1 {[%clk 0:01:51.9]} 28.
Bxc1 {[%clk 0:01:09.5]} 28... Bd6 {[%clk 0:01:52.6]} 29. Kf1 {[%clk 0:01:02.6]}
29... Kf8 {[%clk 0:01:52.2]} 30. Bg4 {[%clk 0:01:02.3]} 30... Nb6 {[%clk
0:01:51.7]} 31. Ke2 {[%clk 0:00:57.2]} 31... Ke7 {[%clk 0:01:52.2]} 32. Kd1
{[%clk 0:00:50.2]} 32... f6 {[%clk 0:01:32.8]} 33. Bf5 {[%clk 0:00:48.1]} 33...
Bb4 {[%clk 0:01:30.8]} 34. fxe5 {[%clk 0:00:39.7]} 34... fxe5 {[%clk 0:01:31.7]}
35. Ke2 {[%clk 0:00:40.2]} 35... Kf7 {[%clk 0:01:24.6]} 36. Kf3 {[%clk
0:00:34.1]} 36... Be1 {[%clk 0:01:22.1]} 37. Bg6+ {[%clk 0:00:21.2]} 37... Kf6
{[%clk 0:01:21.9]} 38. Be8 {[%clk 0:00:16.5]} 38... Na8 {[%clk 0:01:09.6]} 39.
Bc6 {[%clk 0:00:15.5]} 39... Nc7 {[%clk 0:01:10.3]} 40. Bb7 {[%clk 0:00:14.7]}
40... Ke6 {[%clk 0:01:08.7]} 41. Kg4 {[%clk 0:00:12.5]} 41... Kf6 {[%clk
0:01:09.2]} 42. Bc8 {[%clk 0:00:12.3]} 42... Bf2 {[%clk 0:01:08.1]} 43. Kf3
{[%clk 0:00:11.6]} 43... Be1 {[%clk 0:01:08.7]} 44. Bd7 {[%clk 0:00:09.7]} 44...
Ke7 {[%clk 0:01:07.9]} 45. Bc8 {[%clk 0:00:10.1]} 45... Kf6 {[%clk 0:01:08.6]}
46. Kg4 {[%clk 0:00:10.4]} 46... Ba5 {[%clk 0:01:03.2]} 47. Kh3 {[%clk
0:00:08.6]} 47... Be1 {[%clk 0:01:03.6]} 48. Kg2 {[%clk 0:00:06.4]} 48... Ke7
{[%clk 0:01:01.2]} 49. Kh3 {[%clk 0:00:02.5]} 49... Kf6 {[%clk 0:01:01.4]} 50.
Bf5 {[%clk 0:00:01.8]} 50... Ba5 {[%clk 0:01:01]} 51. Bd7 {[%clk 0:00:01.7]}
51... Be1 {[%clk 0:01:01.4]} 52. Bg4 {[%clk 0:00:01.7]} 52... Ke7 {[%clk
0:01:01.2]} 53. Bd1 {[%clk 0:00:02.6]} 53... Kf6 {[%clk 0:01:01.6]} 54. Kg4
{[%clk 0:00:02.8]} 54... Ba5 {[%clk 0:01:01.8]} 55. Bb3 {[%clk 0:00:03.1]} 55...
Be1 {[%clk 0:01:02.3]} 56. Kh3 {[%clk 0:00:03.4]} 56... Ba5 {[%clk 0:01:00.8]}
57. g4 {[%clk 0:00:03.8]} 57... Be1 {[%clk 0:01:00.9]} 58. g5+ {[%clk
0:00:04.3]} 58... hxg5 {[%clk 0:00:57.4]} 59. Kg4 {[%clk 0:00:05.2]} 59... Ne6
{[%clk 0:00:50.6]} 60. Bxe6 {[%clk 0:00:04.7]} 60... Kxe6 {[%clk 0:00:51.5]} 61.
Kxg5 {[%clk 0:00:05.1]} 61... Bf2 {[%clk 0:00:40.5]} 62. Kg6 {[%clk 0:00:04.9]}
62... Be3 {[%clk 0:00:41]} 63. Kxg7 {[%clk 0:00:05.5]} 63... Bxc1 {[%clk
0:00:40.7]} 64. h6 {[%clk 0:00:06.4]} 64... Bxh6+ {[%clk 0:00:38.8]} 65. Kxh6
{[%clk 0:00:07.3]} 65... Kf6 {[%clk 0:00:38.1]} 66. Kh5 {[%clk 0:00:07.2]} 66...
a5 {[%clk 0:00:26.2]} 67. Kh6 {[%clk 0:00:07.6]} 67... b4 {[%clk 0:00:23.9]} 68.
b3 {[%clk 0:00:07.5]} 68... Ke6 {[%clk 0:00:22.5]} 69. Kg6 {[%clk 0:00:07.8]}
69... Ke7 {[%clk 0:00:21.7]} 70. Kf5 {[%clk 0:00:07.8]} 70... Kd6 {[%clk
0:00:22.5]} 71. Kf6 {[%clk 0:00:08.2]} 71... Kc5 {[%clk 0:00:13.7]} 72. Kxe5
{[%clk 0:00:09.1]} 1-0

[Event "*** SCC Grand Prix: Titled Tuesday Blitz"]
[Site "Chess.com"]
[Date "2020.07.07"]
[Round "10"]
[White "rududuyk"]
[Black "Klaus1995"]
[Result "1-0"]
[WhiteElo "2080"]
[BlackElo "1871"]
[TimeControl "180+1"]
[EndTime "11:59:29 PDT"]
[Termination "rududuyk won on time"]

1. e4 {[%clk 0:03:00.9]} 1... c5 {[%clk 0:02:59.5]} 2. Nc3 {[%clk 0:03:00.4]}
2... d6 {[%clk 0:02:59.8]} 3. f4 {[%clk 0:03:00.3]} 3... Nf6 {[%clk 0:02:59.9]}
4. Nf3 {[%clk 0:03:01]} 4... e6 {[%clk 0:02:55.2]} 5. Bc4 {[%clk 0:03:01.3]}
5... Be7 {[%clk 0:02:54.6]} 6. d3 {[%clk 0:03:01.5]} 6... d5 {[%clk 0:02:54.9]}
7. O-O {[%clk 0:03:02.3]} 7... dxc4 {[%clk 0:02:55]} 8. e5 {[%clk 0:02:54.9]}
8... Nfd7 {[%clk 0:02:46.5]} 9. dxc4 {[%clk 0:02:54.5]} 9... Nc6 {[%clk
0:02:47]} 10. Ne4 {[%clk 0:02:51.2]} 10... Qc7 {[%clk 0:02:46.4]} 11. Nd6+
{[%clk 0:02:48.3]} 11... Bxd6 {[%clk 0:02:46.3]} 12. exd6 {[%clk 0:02:48.5]}
12... Qd8 {[%clk 0:02:46.9]} 13. Ne5 {[%clk 0:02:37]} 13... Ndxe5 {[%clk
0:02:44.3]} 14. fxe5 {[%clk 0:02:36.9]} 14... Nxe5 {[%clk 0:02:44.3]} 15. Bf4
{[%clk 0:02:30]} 15... Ng6 {[%clk 0:02:41.8]} 16. Bg3 {[%clk 0:02:26.5]} 16...
O-O {[%clk 0:02:41.9]} 17. Qh5 {[%clk 0:02:24.4]} 17... Bd7 {[%clk 0:02:34.9]}
18. Qxc5 {[%clk 0:02:21.7]} 18... Bc6 {[%clk 0:02:29.1]} 19. b4 {[%clk
0:02:03.1]} 19... Qb6 {[%clk 0:02:27.3]} 20. Qxb6 {[%clk 0:01:57.3]} 20... axb6
{[%clk 0:02:28.2]} 21. Bf2 {[%clk 0:01:57.2]} 21... Rfd8 {[%clk 0:02:19.1]} 22.
Rfd1 {[%clk 0:01:55.9]} 22... Ne5 {[%clk 0:02:07.1]} 23. Bxb6 {[%clk 0:01:51.4]}
23... Rd7 {[%clk 0:02:03.5]} 24. c5 {[%clk 0:01:48.7]} 24... Nc4 {[%clk
0:01:58.5]} 25. Bc7 {[%clk 0:01:40.9]} 25... Ne3 {[%clk 0:01:49.5]} 26. Rd2
{[%clk 0:01:33.4]} 26... Nd5 {[%clk 0:01:48.3]} 27. Bb6 {[%clk 0:01:22.4]} 27...
Nxb6 {[%clk 0:01:47.8]} 28. cxb6 {[%clk 0:01:22.8]} 28... Bd5 {[%clk 0:01:45.6]}
29. a4 {[%clk 0:01:16.2]} 29... Rad8 {[%clk 0:01:41.2]} 30. Rad1 {[%clk
0:01:12.2]} 30... f6 {[%clk 0:01:38.2]} 31. Rd4 {[%clk 0:01:10.4]} 31... Kf7
{[%clk 0:01:37.3]} 32. c4 {[%clk 0:01:09.8]} 32... Rxd6 {[%clk 0:01:30.6]} 33.
cxd5 {[%clk 0:01:05.7]} 33... exd5 {[%clk 0:01:30.8]} 34. a5 {[%clk 0:01:04.2]}
34... Ke6 {[%clk 0:01:30]} 35. Re1+ {[%clk 0:00:58.8]} 35... Kf5 {[%clk
0:01:29]} 36. Re7 {[%clk 0:00:55.4]} 36... R8d7 {[%clk 0:01:29.1]} 37. Re8
{[%clk 0:00:52]} 37... h5 {[%clk 0:01:25.6]} 38. Kf2 {[%clk 0:00:50.1]} 38... g5
{[%clk 0:01:24.7]} 39. Ke3 {[%clk 0:00:47.2]} 39... Rc6 {[%clk 0:01:24.6]} 40.
b5 {[%clk 0:00:20.3]} 40... Rc3+ {[%clk 0:01:23.1]} 41. Kd2 {[%clk 0:00:19.5]}
41... Rc5 {[%clk 0:01:22.7]} 42. Rb4 {[%clk 0:00:18.8]} 42... d4 {[%clk
0:01:22.9]} 43. a6 {[%clk 0:00:18.3]} 43... d3 {[%clk 0:01:18.1]} 44. a7 {[%clk
0:00:17.4]} 44... Rc2+ {[%clk 0:01:18.1]} 45. Kd1 {[%clk 0:00:17.1]} 45... d2
{[%clk 0:01:17.9]} 46. Rb1 {[%clk 0:00:14]} 46... Rc4 {[%clk 0:00:52.5]} 47.
a8=Q {[%clk 0:00:13.3]} 47... Rf4 {[%clk 0:00:51.8]} 48. Kc2 {[%clk 0:00:08.9]}
48... Rf2 {[%clk 0:00:50.3]} 49. Rd1 {[%clk 0:00:08]} 49... Rd4 {[%clk
0:00:48.7]} 50. Qxb7 {[%clk 0:00:07.1]} 50... Rc4+ {[%clk 0:00:49.1]} 51. Kb3
{[%clk 0:00:06.9]} 51... Rc1 {[%clk 0:00:47.3]} 52. Qd5+ {[%clk 0:00:07.3]}
52... Kg6 {[%clk 0:00:47.1]} 53. Rxd2 {[%clk 0:00:07.3]} 53... Rb1+ {[%clk
0:00:46.6]} 54. Kc2 {[%clk 0:00:06.6]} 54... Rbf1 {[%clk 0:00:45.1]} 55. Qg8+
{[%clk 0:00:05.3]} 55... Kf5 {[%clk 0:00:44.5]} 56. Qh7+ {[%clk 0:00:05.1]}
56... Kg4 {[%clk 0:00:42.8]} 57. Qe4+ {[%clk 0:00:04.3]} 57... Rf4 {[%clk
0:00:42.3]} 58. Qe2+ {[%clk 0:00:03.4]} 58... Kf5 {[%clk 0:00:41.7]} 59. Rd5+
{[%clk 0:00:02.6]} 59... Kg6 {[%clk 0:00:41.8]} 60. Qd3+ {[%clk 0:00:02.9]}
60... Kh6 {[%clk 0:00:40.3]} 61. Rh8+ {[%clk 0:00:02]} 61... Kg7 {[%clk
0:00:40.2]} 62. Rd6 {[%clk 0:00:02.4]} 62... R1f2+ {[%clk 0:00:39.7]} 63. Kd1
{[%clk 0:00:01.9]} 63... Rf1+ {[%clk 0:00:40]} 64. Kc2 {[%clk 0:00:01.7]} 64...
R1f2+ {[%clk 0:00:40.2]} 65. Kc3 {[%clk 0:00:02.6]} 65... R2f3 {[%clk 0:00:40]}
66. gxf3 {[%clk 0:00:02]} 66... Rxf3 {[%clk 0:00:40.5]} 67. Qxf3 {[%clk
0:00:02.2]} 67... f5 {[%clk 0:00:40]} 68. Qxf5 {[%clk 0:00:03.1]} 1-0